bitfinex/quotes_BTCUSD_20240730
["timestamp","ask_amount","ask_price","bid_price","bid_amount"]
[1722302007647,0.00343,66861.0,66860.0,1.95189443]
[1722302007850,0.00343,66861.0,66860.0,1.94189443]
[1722302008055,0.00343,66861.0,66860.0,1.61501004]
[1722302008880,0.00343,66861.0,66860.0,1.60401004]
[1722302009908,0.00343,66861.0,66860.0,1.59401004]
[1722302010409,0.00343,66861.0,66860.0,1.58101004]
[1722302011172,0.00343,66861.0,66860.0,1.58501004]
[1722302011570,0.00343,66861.0,66860.0,1.58101004]
[1722302011777,0.00343,66861.0,66860.0,1.57101004]
[1722302011994,0.00343,66861.0,66860.0,1.59501004]
[1722302012450,0.08213,66861.0,66860.0,0.29428604]
[1722302012672,0.08213,66861.0,66860.0,0.42793904]
[1722302012845,0.09099826,66861.0,66860.0,0.78689804]
[1722302013046,0.09099826,66861.0,66860.0,0.54759204]
[1722302013250,0.08944626,66861.0,66860.0,0.54759204]
[1722302013454,0.09099826,66861.0,66860.0,0.29828604]
[1722302013866,0.08944626,66861.0,66860.0,0.17863304]
[1722302014046,0.08944626,66861.0,66860.0,0.29828604]
[1722302014047,0.09099826,66861.0,66860.0,0.29828604]
[1722302014254,0.09099826,66861.0,66860.0,0.30828604]
[1722302014467,0.09099826,66861.0,66860.0,0.53759204]
[1722302014648,0.09099826,66861.0,66860.0,0.54759204]
[1722302014872,0.08944626,66861.0,66860.0,0.53759204]
[1722302015118,0.08944626,66861.0,66860.0,0.54759204]
[1722302015318,0.08944626,66861.0,66860.0,0.53759204]
[1722302015459,0.11290187,66861.0,66860.0,0.54759204]
[1722302015659,0.11290187,66861.0,66860.0,0.50959204]
[1722302015855,0.11290187,66861.0,66860.0,0.28328604]
[1722302016290,0.11290187,66861.0,66860.0,0.27028604]
[1722302016452,0.0628,66860.0,66856.0,0.01]
[1722302016656,0.11290187,66861.0,66856.0,0.01]
[1722302016657,0.16131493,66859.0,66858.0,0.00823041]
[1722302016876,0.16131493,66859.0,66858.0,0.16886345]
[1722302016877,0.07163187,66859.0,66858.0,0.16886345]
[1722302017115,0.07007987,66859.0,66858.0,0.28851945]
[1722302017866,0.07007987,66859.0,66858.0,0.52783245]
[1722302018057,0.07007987,66859.0,66858.0,0.28851945]
[1722302018253,0.0628,66859.0,66858.0,0.28851945]
[1722302018567,0.06985103,66859.0,66858.0,0.28851945]
[1722302018917,0.06985103,66859.0,66858.0,0.52783245]
[1722302019085,0.06985103,66859.0,66858.0,0.76714545]
[1722302019290,0.0628,66859.0,66858.0,0.76714545]
[1722302019917,0.0628,66859.0,66858.0,0.52783245]
[1722302020061,0.09330813,66859.0,66858.0,0.52783245]
[1722302021084,0.09330813,66859.0,66858.0,0.27851945]
[1722302021282,0.09330813,66859.0,66858.0,0.15886345]
[1722302021506,0.46739248,66859.0,66858.0,0.01023041]
[1722302021686,0.63955357,66859.0,66858.0,0.01023041]
[1722302021884,0.72750307,66859.0,66858.0,0.002]
[1722302022090,1.05718649,66859.0,66858.0,0.002]
[1722302022288,0.119657,66858.0,66849.0,0.239344]
[1722302022520,0.04481013,66856.0,66853.0,0.01]
[1722302022667,0.00132102,66855.0,66853.0,0.16063304]
[1722302022868,0.00702956,66854.0,66853.0,0.16063304]
[1722302023073,0.00858156,66854.0,66853.0,0.51962904]
[1722302023312,0.00702956,66854.0,66853.0,0.51962904]
[1722302023520,0.001552,66857.0,66853.0,0.28029804]
[1722302023713,0.00699781,66856.0,66855.0,0.01]
[1722302023959,0.04481013,66858.0,66855.0,0.15063304]
[1722302024139,0.00796644,66857.0,66855.0,0.16063304]
[1722302024332,0.00796644,66857.0,66856.0,0.51961304]
[1722302024333,0.00701095,66857.0,66856.0,0.51961304]
[1722302024545,0.00701095,66857.0,66856.0,0.76716345]
[1722302024740,0.10761013,66859.0,66857.0,0.358974]
[1722302024741,0.001552,66858.0,66857.0,0.358974]
[1722302024917,0.00856295,66858.0,66857.0,0.75892304]
[1722302025318,0.03046872,66858.0,66857.0,0.51960704]
[1722302025722,0.09765016,66858.0,66857.0,0.51960704]
[1722302025939,0.03046872,66858.0,66857.0,0.51960704]
[1722302026345,0.00701095,66858.0,66857.0,0.51960704]
[1722302026677,0.05179566,66858.0,66857.0,0.51960704]
[1722302027377,0.05179566,66858.0,66857.0,0.52360704]
[1722302027602,0.00701095,66858.0,66857.0,0.51360704]
[1722302027928,0.05179208,66858.0,66857.0,0.51360704]
[1722302028169,0.00701095,66858.0,66857.0,0.52360704]
[1722302028345,0.00701095,66858.0,66857.0,0.51360704]
[1722302028530,0.00701095,66858.0,66857.0,0.52360704]
[1722302028728,0.00080463,66860.0,66859.0,0.368963]
[1722302028942,0.04343,66861.0,66860.0,0.129653]
[1722302029136,0.044982,66861.0,66860.0,0.28028604]
[1722302029377,0.04343,66861.0,66860.0,0.75889804]
[1722302031437,0.04343,66861.0,66860.0,0.99820404]
[1722302032365,0.04343,66861.0,66860.0,0.99920404]
[1722302033018,0.06688576,66861.0,66860.0,0.99920404]
[1722302034113,0.04343,66861.0,66860.0,0.99920404]
[1722302034273,0.04343,66861.0,66860.0,0.99820404]
[1722302034476,0.04343,66861.0,66860.0,1.00420404]
[1722302035095,0.04343,66861.0,66860.0,0.99420404]
[1722302035293,0.04343,66861.0,66860.0,1.00420404]
[1722302035518,0.04343,66861.0,66860.0,0.76489804]
[1722302035720,0.04343,66861.0,66860.0,0.75489804]
[1722302035928,0.04343,66861.0,66860.0,0.76489804]
[1722302036134,0.04343,66861.0,66860.0,0.75489804]
[1722302036361,0.04343,66861.0,66860.0,0.27628604]
[1722302036509,0.19327045,66861.0,66860.0,0.15663304]
[1722302036712,0.19327045,66861.0,66860.0,0.27028604]
[1722302037135,0.19327045,66861.0,66860.0,0.27128604]
[1722302037359,0.21672706,66861.0,66860.0,0.27028604]
[1722302037702,0.19327045,66861.0,66860.0,0.27028604]
[1722302038516,0.23659808,66861.0,66855.0,0.000913]
[1722302038719,0.04477383,66858.0,66856.0,0.15063304]
[1722302038917,0.06871282,66857.0,66856.0,0.15063304]
[1722302039160,0.07420127,66857.0,66856.0,0.15063304]
[1722302039359,0.00704045,66857.0,66856.0,0.15063304]
[1722302039785,0.00799353,66857.0,66856.0,0.15063304]
[1722302039958,0.00704045,66857.0,66856.0,0.15063304]
[1722302040502,0.03049846,66857.0,66856.0,0.15063304]
[1722302041099,0.03049846,66857.0,66856.0,0.15363304]
[1722302041505,0.00704045,66857.0,66856.0,0.15363304]
[1722302041668,0.00853978,66857.0,66856.0,0.27329304]
[1722302042026,0.00149933,66857.0,66856.0,0.15063304]
[1722302042606,0.04476765,66857.0,66856.0,0.15063304]
[1722302042831,0.04626698,66858.0,66856.0,0.15063304]
[1722302043685,0.11966,66856.0,66855.0,0.00914341]
[1722302043882,0.75217685,66856.0,66855.0,0.00914341]
[1722302044319,0.75372885,66856.0,66855.0,0.00914341]
[1722302044514,0.77718805,66856.0,66855.0,0.00914341]
[1722302044798,0.77563605,66856.0,66855.0,0.00914341]
[1722302044998,0.77563605,66856.0,66855.0,0.000913]
[1722302044999,0.9421097,66856.0,66855.0,0.000913]
[1722302045302,1.6466105,66856.0,66855.0,0.000913]
[1722302045602,1.77246309,66856.0,66855.0,0.000913]
[1722302045710,1.80391109,66856.0,66855.0,0.000913]
[1722302045911,0.119696,66836.0,66832.0,0.01]
[1722302046116,0.259359,66845.0,66832.0,0.15063304]
[1722302046117,0.119701,66833.0,66832.0,0.15063304]
[1722302046569,0.119706,66830.0,66819.0,0.37665]
[1722302046738,0.001552,66831.0,66826.0,0.119713]
[1722302046956,0.001552,66832.0,66831.0,0.01]
[1722302047129,0.32888804,66838.0,66832.0,0.129703]
[1722302047130,0.001552,66833.0,66832.0,0.129703]
[1722302047354,0.001552,66833.0,66832.0,0.59774204]
[1722302047547,0.001552,66839.0,66836.0,0.129695]
[1722302047766,0.001552,66839.0,66837.0,0.15063304]
[1722302048141,0.001552,66839.0,66837.0,0.16063304]
[1722302048344,0.001552,66840.0,66837.0,0.16063304]
[1722302048547,0.02346518,66839.0,66837.0,0.16063304]
[1722302048745,0.001552,66838.0,66837.0,0.16063304]
[1722302048944,0.001552,66838.0,66837.0,0.15063304]
[1722302049865,0.05842121,66838.0,66836.0,0.00823041]
[1722302050032,0.05686921,66838.0,66836.0,0.00823041]
[1722302050454,0.00142035,66837.0,66836.0,0.00823041]
[1722302050658,0.02346518,66839.0,66836.0,0.00823041]
[1722302050659,0.001552,66838.0,66836.0,0.00823041]
[1722302050772,0.121245,66838.0,66836.0,0.00823041]
[1722302050975,0.121245,66838.0,66837.0,0.15063304]
[1722302051171,0.04471431,66839.0,66837.0,0.15063304]
[1722302051421,0.16440431,66839.0,66837.0,0.15063304]
[1722302051834,0.00133321,66838.0,66837.0,0.15063304]
[1722302052330,0.09227904,66838.0,66837.0,0.15063304]
[1722302052512,0.09383104,66838.0,66837.0,0.15063304]
[1722302052710,0.001552,66838.0,66837.0,0.50971504]
[1722302052911,0.001552,66842.0,66841.0,0.119687]
[1722302053236,0.0098749,66844.0,66841.0,0.119687]
[1722302053505,0.0098749,66844.0,66839.0,0.239381]
[1722302053506,0.10769444,66846.0,66838.0,0.01]
[1722302053705,0.10769444,66846.0,66840.0,0.01]
[1722302053923,0.001552,66845.0,66844.0,0.01]
[1722302054184,0.02501505,66845.0,66844.0,0.83227045]
[1722302054368,0.04469444,66857.0,66844.0,1.02995245]
[1722302054369,0.001552,66856.0,66844.0,1.02995245]
[1722302054568,0.001552,66856.0,66850.0,0.01]
[1722302054778,0.22734944,66859.0,66851.0,0.38997004]
[1722302055001,0.16435044,66858.0,66854.0,0.119662]
[1722302055215,0.04469444,66858.0,66854.0,0.27029504]
[1722302055398,0.31124773,66859.0,66854.0,0.27029504]
[1722302055607,0.14231178,66858.0,66854.0,0.27029504]
[1722302055810,0.04469444,66857.0,66854.0,0.27029504]
[1722302056007,0.04612654,66856.0,66854.0,0.28029504]
[1722302056215,0.0014321,66856.0,66855.0,0.119661]
[1722302056451,0.063,66859.0,66858.0,0.119656]
[1722302056452,0.04471018,66859.0,66858.0,0.119656]
[1722302056674,0.04471018,66860.0,66859.0,0.119654]
[1722302057090,0.04471018,66860.0,66859.0,0.368963]
[1722302057229,0.04343,66861.0,66860.0,0.129653]
[1722302057433,0.04343,66861.0,66860.0,0.50959204]
[1722302057646,0.04343,66861.0,66860.0,0.51959204]
[1722302057846,0.06688793,66861.0,66860.0,0.50959204]
[1722302058050,0.06688793,66861.0,66860.0,0.75889804]
[1722302058830,0.06688793,66861.0,66860.0,0.51959204]
[1722302059283,0.06670792,66861.0,66860.0,0.75889804]
[1722302059491,0.02670792,66861.0,66860.0,0.75889804]
[1722302059915,0.02670792,66861.0,66860.0,0.52059204]
[1722302060063,0.02670792,66861.0,66860.0,0.75989804]
[1722302061472,0.02670792,66861.0,66860.0,0.74989804]
[1722302061647,0.02670792,66861.0,66860.0,0.75989804]
[1722302061852,0.02670792,66861.0,66860.0,0.74989804]
[1722302062048,0.00324999,66861.0,66860.0,0.74989804]
[1722302062468,0.00324999,66861.0,66860.0,0.75989804]
[1722302063075,0.00324999,66861.0,66860.0,0.74989804]
[1722302063283,0.00324999,66861.0,66860.0,0.75989804]
[1722302064062,0.00324999,66861.0,66860.0,0.89809804]
[1722302064258,0.00324999,66861.0,66860.0,0.90809804]
[1722302064477,0.00324999,66861.0,66860.0,0.89809804]
[1722302064803,0.00324999,66861.0,66860.0,1.13740404]
[1722302065004,0.00324999,66861.0,66860.0,1.14740404]
[1722302065413,0.02670659,66861.0,66860.0,1.14740404]
[1722302065610,0.02670659,66861.0,66860.0,1.48671004]
[1722302065816,0.00324999,66861.0,66860.0,1.48671004]
[1722302066018,0.00324999,66861.0,66860.0,1.47571004]
[1722302066221,0.00324999,66861.0,66860.0,1.48571004]
[1722302066444,0.00324999,66861.0,66860.0,1.47871004]
[1722302067060,0.00324999,66861.0,66860.0,1.25340404]
[1722302067260,0.00324999,66861.0,66860.0,1.24640404]
[1722302067622,0.00324999,66861.0,66860.0,1.26040404]
[1722302068797,0.02670398,66861.0,66860.0,1.26040404]
[1722302069146,0.02670398,66861.0,66860.0,1.24640404]
[1722302069390,0.02670398,66861.0,66860.0,1.26040404]
[1722302070002,0.00324999,66861.0,66860.0,1.26040404]
[1722302070343,0.00324999,66861.0,66860.0,1.24640404]
[1722302071145,0.00324999,66861.0,66860.0,1.26040404]
[1722302072084,0.00324999,66861.0,66860.0,1.02109804]
[1722302072496,0.00324999,66861.0,66860.0,1.00709804]
[1722302072907,0.00324999,66861.0,66860.0,1.24640404]
[1722302073110,0.00324999,66861.0,66860.0,1.26040404]
[1722302073315,0.02670456,66861.0,66860.0,1.26040404]
[1722302075612,0.02670456,66861.0,66860.0,1.02109804]
[1722302075797,0.02670456,66861.0,66860.0,0.85579804]
[1722302076479,0.00324999,66861.0,66860.0,0.85579804]
[1722302077330,0.00324999,66861.0,66860.0,0.84579804]
[1722302077674,0.00324999,66861.0,66860.0,0.77289804]
[1722302077879,0.00324999,66861.0,66860.0,0.53359204]
[1722302078693,0.00324999,66861.0,66860.0,0.76289804]
[1722302078902,0.00324999,66861.0,66860.0,0.77289804]
[1722302079857,0.0267052,66861.0,66860.0,0.77289804]
[1722302080021,0.0267052,66861.0,66860.0,0.53359204]
[1722302080206,0.0267052,66861.0,66860.0,0.52359204]
[1722302080609,0.0267052,66861.0,66860.0,0.77289804]
[1722302081132,0.0267052,66861.0,66860.0,0.53359204]
[1722302081499,0.0267052,66861.0,66860.0,0.77289804]
[1722302081772,0.0267052,66861.0,66860.0,0.52359204]
[1722302081973,0.0267052,66861.0,66860.0,0.76289804]
[1722302082366,0.0267052,66861.0,66860.0,0.52359204]
[1722302082777,0.0267052,66861.0,66860.0,0.76289804]
[1722302082924,0.0267052,66861.0,66860.0,0.77289804]
[1722302084083,0.0267052,66861.0,66860.0,0.76289804]
[1722302084287,0.00324999,66861.0,66860.0,0.77289804]
[1722302084511,0.00324999,66861.0,66860.0,0.76289804]
[1722302085261,0.00324999,66861.0,66860.0,0.77289804]
[1722302086932,0.00324999,66861.0,66860.0,0.53359204]
[1722302087145,0.00324999,66861.0,66860.0,0.52359204]
[1722302087723,0.02670538,66861.0,66860.0,0.29428604]
[1722302087897,0.02670538,66861.0,66860.0,0.52359204]
[1722302088528,0.02670538,66861.0,66860.0,0.77289804]
[1722302088794,0.02670538,66861.0,66860.0,0.53359204]
[1722302089373,0.02670538,66861.0,66860.0,0.16463304]
[1722302089969,0.02825738,66861.0,66860.0,0.16463304]
[1722302090173,0.12017418,66861.0,66860.0,0.16463304]
[1722302090374,0.12017418,66861.0,66860.0,0.15063304]
[1722302090578,0.12017418,66861.0,66860.0,0.15154604]
[1722302090778,0.02825738,66861.0,66860.0,0.16654604]
[1722302090923,0.02670538,66861.0,66860.0,0.16154604]
[1722302091127,0.02825738,66861.0,66860.0,0.28119904]
[1722302091446,0.02825738,66861.0,66860.0,0.28419904]
[1722302091636,0.02670538,66861.0,66860.0,0.28119904]
[1722302091909,0.02670538,66861.0,66860.0,0.52050504]
[1722302091910,0.02767484,66861.0,66860.0,0.52050504]
[1722302092209,0.02670538,66861.0,66860.0,0.75981104]
[1722302092511,0.00324999,66861.0,66860.0,0.75981104]
[1722302093611,0.00324999,66861.0,66860.0,0.76181104]
[1722302094363,0.00324999,66861.0,66860.0,0.52050504]
[1722302094804,0.00324999,66861.0,66860.0,0.53050504]
[1722302095509,0.00324999,66861.0,66860.0,0.52050504]
[1722302095655,0.02670598,66861.0,66860.0,0.53050504]
[1722302097625,0.02670598,66861.0,66860.0,0.52050504]
[1722302098088,0.02670598,66861.0,66860.0,0.52850504]
[1722302098289,0.02670598,66861.0,66860.0,0.52050504]
[1722302098709,0.02670598,66861.0,66860.0,0.52750504]
[1722302098907,0.07148457,66861.0,66860.0,0.52750504]
[1722302099328,0.02670598,66861.0,66860.0,0.52750504]
[1722302099626,0.02670598,66861.0,66860.0,0.52050504]
[1722302099838,0.02670598,66861.0,66860.0,0.52850504]
[1722302100129,0.02825798,66861.0,66860.0,0.52850504]
[1722302100332,0.09387387,66861.0,66860.0,0.51850504]
[1722302100645,0.02670598,66861.0,66860.0,0.27919904]
[1722302100852,0.02670598,66861.0,66860.0,0.51850504]
[1722302101109,0.02670598,66861.0,66860.0,0.52850504]
[1722302101312,0.11639895,66861.0,66860.0,0.51050504]
[1722302101531,0.02670598,66861.0,66860.0,0.51750504]
[1722302101734,0.02670598,66861.0,66860.0,0.51050504]
[1722302101848,0.02670598,66861.0,66860.0,0.52050504]
[1722302102053,0.11902709,66861.0,66860.0,0.52050504]
[1722302102250,0.14007358,66861.0,66860.0,0.51050504]
[1722302102445,0.23101046,66861.0,66860.0,0.51050504]
[1722302102873,0.11889425,66861.0,66860.0,0.51050504]
[1722302103075,0.13882219,66861.0,66860.0,0.52050504]
[1722302103331,0.02670598,66861.0,66860.0,0.52050504]
[1722302103663,0.11921415,66861.0,66860.0,0.51050504]
[1722302103799,0.23139132,66861.0,66860.0,0.15154604]
[1722302104005,0.23139132,66861.0,66860.0,0.27119904]
[1722302104603,0.23139132,66861.0,66860.0,0.51050504]
[1722302104604,0.13888315,66861.0,66860.0,0.51050504]
[1722302104805,0.02670598,66861.0,66860.0,0.51050504]
[1722302105204,0.11644483,66861.0,66860.0,0.51050504]
[1722302105482,0.11644483,66861.0,66860.0,0.52050504]
[1722302105649,0.02670598,66861.0,66860.0,0.52050504]
[1722302105794,0.02670598,66861.0,66860.0,0.51850504]
[1722302106193,0.11644283,66861.0,66860.0,0.51850504]
[1722302106531,0.09298633,66861.0,66860.0,0.52850504]
[1722302106709,0.09298633,66861.0,66860.0,0.76781104]
[1722302106898,0.00324999,66861.0,66860.0,0.76781104]
[1722302107125,0.04811796,66861.0,66860.0,0.51850504]
[1722302107328,0.00324999,66861.0,66860.0,0.52850504]
[1722302107534,0.07055195,66861.0,66860.0,0.52050504]
[1722302107737,0.07055195,66861.0,66860.0,0.15154604]
[1722302107738,0.20810099,66861.0,66860.0,0.15154604]
[1722302107932,0.20810099,66861.0,66860.0,0.15354604]
[1722302107933,0.17818633,66861.0,66860.0,0.15354604]
[1722302108175,0.17818633,66861.0,66860.0,0.15154604]
[1722302108176,0.08844999,66861.0,66860.0,0.15154604]
[1722302108539,0.08844999,66861.0,66860.0,0.15454604]
[1722302109972,0.15044999,66861.0,66860.0,0.15454604]
[1722302110230,0.15125817,66861.0,66860.0,0.15454604]
[1722302110390,0.15044999,66861.0,66860.0,0.15454604]
[1722302110928,0.08844999,66861.0,66860.0,0.15454604]
[1722302111333,0.00324999,66861.0,66860.0,0.15454604]
[1722302111539,0.99099675,66861.0,66860.0,0.003913]
[1722302111717,1.29530584,66861.0,66860.0,0.003913]
[1722302111913,1.16070318,66861.0,66860.0,0.003913]
[1722302112095,0.92140118,66861.0,66860.0,0.003913]
[1722302112296,0.57742954,66861.0,66860.0,0.003913]
[1722302112613,0.59444791,66861.0,66860.0,0.003913]
[1722302112827,0.68225704,66861.0,66860.0,0.003913]
[1722302113390,0.92155904,66861.0,66860.0,0.003913]
[1722302114119,0.94501716,66861.0,66860.0,0.003913]
[1722302114315,0.70571516,66861.0,66860.0,0.005913]
[1722302114721,0.70571516,66861.0,66860.0,0.000913]
[1722302114907,0.94501716,66861.0,66860.0,0.000913]
[1722302115244,0.70571516,66861.0,66860.0,0.000913]
[1722302115455,0.38381316,66861.0,66860.0,0.000913]
[1722302115694,0.62311516,66861.0,66860.0,0.000913]
[1722302115898,0.53530603,66861.0,66860.0,0.000913]
[1722302116074,0.62226719,66861.0,66860.0,0.000913]
[1722302117115,1.10588651,66861.0,66860.0,0.000913]
[1722302117335,1.10320319,66861.0,66860.0,0.000913]
[1722302117533,2.0015354,66861.0,66860.0,0.000913]
[1722302117708,1.62077952,66861.0,66860.0,0.000913]
[1722302117928,1.74054422,66861.0,66860.0,0.000913]
[1722302118092,1.7170861,66861.0,66860.0,0.000913]
[1722302118292,1.7070861,66861.0,66860.0,0.000913]
[1722302118501,1.7170861,66861.0,66860.0,0.000913]
[1722302118743,1.7070861,66861.0,66860.0,0.001913]
[1722302118974,1.50036024,66861.0,66860.0,0.001913]
[1722302119178,1.70869364,66861.0,66860.0,0.001913]
[1722302119500,1.62086765,66861.0,66860.0,0.001913]
[1722302119736,1.72969446,66861.0,66860.0,0.002913]
[1722302120136,1.71969446,66861.0,66860.0,0.002913]
[1722302120295,1.8703275,66861.0,66860.0,0.002913]
[1722302120498,1.8933275,66861.0,66860.0,0.002913]
[1722302120912,1.93429528,66861.0,66860.0,0.002913]
[1722302121114,2.16589479,66861.0,66860.0,0.002913]
[1722302121348,2.14243322,66861.0,66860.0,0.002913]
[1722302121730,1.90117619,66861.0,66860.0,0.002913]
[1722302121985,1.6408515,66861.0,66860.0,0.002913]
[1722302122099,1.64866735,66861.0,66860.0,0.002913]
[1722302122301,1.4975979,66861.0,66860.0,0.002913]
[1722302124055,1.52105963,66861.0,66860.0,0.002913]
[1722302125619,1.52061951,66861.0,66860.0,0.002913]
[1722302125830,1.82246508,66861.0,66860.0,0.002913]
[1722302126457,1.81246508,66861.0,66860.0,0.002913]
[1722302126571,1.82246508,66861.0,66860.0,0.002913]
[1722302126780,1.82194687,66861.0,66860.0,0.002913]
[1722302126980,0.359038,66845.0,66844.0,0.000913]
[1722302127185,0.68794419,66845.0,66844.0,0.000913]
[1722302127378,0.68127951,66845.0,66844.0,0.000913]
[1722302127599,0.70474298,66845.0,66844.0,0.000913]
[1722302128162,1.03188068,66845.0,66844.0,0.000913]
[1722302128280,1.30450899,66845.0,66844.0,0.006913]
[1722302128481,1.30449153,66845.0,66844.0,0.006913]
[1722302128799,1.19257566,66845.0,66844.0,0.006913]
[1722302129193,0.91975319,66845.0,66844.0,0.006913]
[1722302129412,0.91975319,66845.0,66844.0,0.000913]
[1722302129863,0.83197383,66845.0,66844.0,0.000913]
[1722302130058,0.92031896,66845.0,66844.0,0.000913]
[1722302130501,0.92131896,66845.0,66844.0,0.006913]
[1722302131059,0.92131896,66845.0,66844.0,0.000913]
[1722302131060,0.92031896,66845.0,66844.0,0.000913]
[1722302131366,0.92131896,66845.0,66844.0,0.000913]
[1722302131481,0.92231896,66845.0,66844.0,0.000913]
[1722302131685,0.92240235,66845.0,66844.0,0.000913]
[1722302131893,0.29299003,66845.0,66844.0,0.000913]
[1722302132318,0.29403882,66845.0,66844.0,0.141713]
[1722302132488,0.22802555,66845.0,66844.0,0.141713]
[1722302132648,0.20456151,66845.0,66844.0,0.141713]
[1722302133847,0.31431935,66845.0,66844.0,0.141713]
[1722302135631,0.19464035,66845.0,66844.0,0.081713]
[1722302135787,0.08488251,66845.0,66844.0,0.081713]
[1722302135987,0.10834633,66845.0,66844.0,0.081713]
[1722302136191,0.11814454,66845.0,66844.0,0.081713]
[1722302136590,0.23782354,66845.0,66844.0,0.081713]
[1722302137018,0.21435972,66845.0,66844.0,0.081713]
[1722302137733,0.30342903,66845.0,66844.0,0.081713]
[1722302137937,0.18375003,66845.0,66844.0,0.081713]
[1722302138171,0.18374995,66845.0,66844.0,0.081713]
[1722302138940,0.2601138,66845.0,66844.0,0.081713]
[1722302139744,0.17104457,66845.0,66844.0,0.081713]
[1722302140119,0.002,66845.0,66844.0,0.65729004]
[1722302140322,0.002,66845.0,66844.0,1.14601604]
[1722302140435,0.02546368,66845.0,66844.0,1.14601604]
[1722302140644,0.002,66845.0,66844.0,1.14601604]
[1722302141505,0.001,66845.0,66844.0,1.14601604]
[1722302141937,0.005,66845.0,66844.0,1.14701604]
[1722302142070,0.005,66845.0,66844.0,0.90765304]
[1722302142256,0.001,66845.0,66844.0,0.90665304]
[1722302142662,0.0872,66845.0,66844.0,0.91165304]
[1722302142908,0.0872,66845.0,66844.0,0.91765304]
[1722302143439,0.002,66845.0,66844.0,0.91765304]
[1722302146501,0.002,66845.0,66844.0,1.14701604]
[1722302146705,0.002,66845.0,66844.0,1.15701604]
[1722302147262,0.001,66845.0,66844.0,1.14201604]
[1722302147493,0.002,66845.0,66844.0,1.15701604]
[1722302147704,0.02546036,66845.0,66844.0,1.15701604]
[1722302147905,0.02546036,66845.0,66844.0,1.14701604]
[1722302148070,0.02446036,66845.0,66844.0,1.15201604]
[1722302149342,0.02446036,66845.0,66844.0,1.14601604]
[1722302149343,0.02346036,66845.0,66844.0,1.14601604]
[1722302149545,0.04474679,66856.0,66854.0,0.1416]
[1722302149740,0.119656,66858.0,66854.0,0.41189604]
[1722302149896,0.04475389,66856.0,66855.0,0.27029404]
[1722302150094,0.04475389,66856.0,66855.0,0.28029404]
[1722302150495,0.04475389,66856.0,66855.0,0.51961704]
[1722302150898,0.06713557,66858.0,66856.0,0.01]
[1722302151099,0.06713557,66858.0,66857.0,0.15063304]
[1722302151324,0.15609027,66858.0,66857.0,0.15063304]
[1722302152305,0.15609027,66858.0,66857.0,0.16063304]
[1722302152583,0.19382006,66858.0,66857.0,0.15063304]
[1722302152704,0.19382006,66858.0,66857.0,0.16063304]
[1722302152905,0.15609027,66858.0,66857.0,0.16063304]
[1722302153522,0.08951409,66859.0,66857.0,0.16063304]
[1722302153723,0.08951409,66859.0,66857.0,0.15063304]
[1722302154138,0.11300599,66859.0,66857.0,0.15063304]
[1722302154771,0.119656,66858.0,66857.0,0.15063304]
[1722302154988,0.119656,66858.0,66854.0,0.1416]
[1722302154989,0.119661,66855.0,66854.0,0.1416]
[1722302155212,0.119661,66855.0,66854.0,0.15063304]
[1722302155621,0.358984,66855.0,66854.0,0.15063304]
[1722302156205,0.572084,66855.0,66854.0,0.15063304]
[1722302156579,0.358996,66853.0,66852.0,0.00823041]
[1722302156783,0.598327,66853.0,66852.0,0.00823041]
[1722302156987,0.119679,66845.0,66844.0,0.000913]
[1722302157189,0.119679,66845.0,66844.0,0.15977645]
[1722302157367,0.4038335,66845.0,66844.0,0.15977645]
[1722302157597,0.23273191,66845.0,66844.0,0.15154604]
[1722302157976,0.33860657,66845.0,66844.0,0.15154604]
[1722302158387,0.10693881,66845.0,66844.0,0.16154604]
[1722302158624,0.21992757,66845.0,66844.0,0.17354604]
[1722302158940,0.10793881,66845.0,66844.0,0.16354604]
[1722302159120,0.02346191,66845.0,66844.0,0.15154604]
[1722302159319,0.42631595,66845.0,66844.0,0.000913]
[1722302159521,0.7552018,66845.0,66844.0,0.000913]
[1722302159724,0.83807889,66845.0,66844.0,0.000913]
[1722302159886,0.87645925,66845.0,66844.0,0.000913]
[1722302160302,0.78965132,66845.0,66844.0,0.000913]
[1722302160503,0.8765954,66845.0,66844.0,0.000913]
[1722302160703,0.8755954,66845.0,66844.0,0.000913]
[1722302160947,1.1149544,66845.0,66844.0,0.000913]
[1722302161125,1.1159544,66845.0,66844.0,0.000913]
[1722302161328,1.3653134,66845.0,66844.0,0.000913]
[1722302161538,1.3653134,66845.0,66818.0,0.239452]
[1722302161539,0.119721,66822.0,66819.0,0.08803041]
[1722302161729,0.119721,66822.0,66821.0,0.010913]
[1722302161730,0.572263,66822.0,66821.0,0.010913]
[1722302161946,0.9785827,66822.0,66821.0,0.000913]
[1722302162183,0.76155081,66822.0,66821.0,0.000913]
[1722302162467,1.00095475,66822.0,66821.0,0.000913]
[1722302162768,1.10008393,66822.0,66821.0,0.004913]
[1722302163129,0.79700974,66822.0,66821.0,0.004913]
[1722302163323,0.02346988,66822.0,66821.0,0.153713]
[1722302163595,0.02346988,66822.0,66821.0,0.90295804]
[1722302164020,0.04480395,66825.0,66824.0,0.119717]
[1722302164227,0.04480395,66825.0,66824.0,0.16063304]
[1722302164430,0.06720756,66827.0,66824.0,0.28034904]
[1722302164579,0.06720756,66827.0,66826.0,0.01]
[1722302164791,0.13000366,66827.0,66825.0,0.15063304]
[1722302164987,0.35914,66826.0,66825.0,0.15063304]
[1722302165189,0.43716712,66826.0,66825.0,0.15063304]
[1722302165391,0.119721,66822.0,66821.0,0.004913]
[1722302165619,0.359163,66822.0,66821.0,0.000913]
[1722302165925,0.16449336,66822.0,66821.0,0.000913]
[1722302166334,0.119721,66822.0,66821.0,0.000913]
[1722302166532,0.26810532,66822.0,66821.0,0.000913]
[1722302166836,0.50754732,66822.0,66821.0,0.000913]
[1722302167012,0.26810532,66822.0,66821.0,0.000913]
[1722302167214,0.16448436,66822.0,66821.0,0.010913]
[1722302167396,0.02647039,66822.0,66821.0,0.000913]
[1722302167596,0.122721,66822.0,66821.0,0.000913]
[1722302168231,0.598605,66822.0,66821.0,0.000913]
[1722302168421,0.359163,66822.0,66821.0,0.000913]
[1722302168641,0.45268844,66822.0,66821.0,0.000913]
[1722302169202,0.90523044,66822.0,66821.0,0.000913]
[1722302169607,0.97234053,66822.0,66821.0,0.000913]
[1722302169819,0.90523044,66822.0,66821.0,0.000913]
[1722302170159,0.97232885,66822.0,66821.0,0.000913]
[1722302170363,0.90523044,66822.0,66821.0,0.000913]
[1722302170566,0.96931457,66822.0,66821.0,0.000913]
[1722302170964,0.97231457,66822.0,66821.0,0.000913]
[1722302171268,0.97331457,66822.0,66821.0,0.000913]
[1722302171480,1.23275657,66822.0,66821.0,0.000913]
[1722302171651,1.41130699,66822.0,66821.0,0.000913]
[1722302171815,1.04001484,66822.0,66821.0,0.000913]